[Event "*** Titled Tuesday Blitz"]
[Site "Chess.com"]
[Date "2021.02.09"]
[Round "4"]
[White "paulrusan"]
[Black "akanga001"]
[Result "1-0"]
[WhiteElo "2232"]
[BlackElo "1958"]
[TimeControl "180+1"]
[EndTime "10:39:35 PST"]
[Termination "paulrusan won on time"]

1. e4 {[%clk 0:03:00.9]} 1... c5 {[%clk 0:02:58.1]} 2. b4 {[%clk 0:03:00.4]}
2... cxb4 {[%clk 0:02:56.8]} 3. Bb2 {[%clk 0:03:00.5]} 3... Nf6 {[%clk
0:02:53.8]} 4. e5 {[%clk 0:03:00.2]} 4... Nd5 {[%clk 0:02:53]} 5. a3 {[%clk
0:03:00.8]} 5... bxa3 {[%clk 0:02:52]} 6. Nxa3 {[%clk 0:03:00.1]} 6... e6 {[%clk
0:02:46.4]} 7. Nc4 {[%clk 0:02:58.3]} 7... d6 {[%clk 0:02:45]} 8. exd6 {[%clk
0:02:57.4]} 8... Bxd6 {[%clk 0:02:43.8]} 9. Bxg7 {[%clk 0:02:56.7]} 9... Rg8
{[%clk 0:02:42.7]} 10. Bb2 {[%clk 0:02:53.1]} 10... Nc6 {[%clk 0:02:39.8]} 11.
Nf3 {[%clk 0:02:46.9]} 11... Be7 {[%clk 0:02:38.3]} 12. g3 {[%clk 0:02:43.8]}
12... h5 {[%clk 0:02:32.5]} 13. h4 {[%clk 0:02:39.7]} 13... b5 {[%clk 0:02:27]}
14. Nce5 {[%clk 0:02:38.2]} 14... Nxe5 {[%clk 0:02:22.5]} 15. Nxe5 {[%clk
0:02:38.1]} 15... Qb6 {[%clk 0:02:15.7]} 16. Qxh5 {[%clk 0:02:36.3]} 16... Rf8
{[%clk 0:02:04.6]} 17. Bg2 {[%clk 0:02:20.2]} 17... Bb7 {[%clk 0:01:38.8]} 18.
O-O {[%clk 0:02:14.8]} 18... Nf6 {[%clk 0:01:30.5]} 19. Qe2 {[%clk 0:02:03.6]}
19... Bxg2 {[%clk 0:01:28.3]} 20. Kxg2 {[%clk 0:02:03.7]} 20... O-O-O {[%clk
0:01:23.7]} 21. d3 {[%clk 0:01:52.5]} 21... Qb7+ {[%clk 0:01:20.2]} 22. Qf3
{[%clk 0:01:51.4]} 22... Nd5 {[%clk 0:01:18.9]} 23. Rfb1 {[%clk 0:01:32.2]}
23... Bd6 {[%clk 0:01:14.1]} 24. c4 {[%clk 0:01:30.5]} 24... Nb4 {[%clk
0:01:03.8]} 25. Bd4 {[%clk 0:00:53.7]} 25... a6 {[%clk 0:00:56]} 26. Rxb4 {[%clk
0:00:44.3]} 26... Bxb4 {[%clk 0:00:52.2]} 27. Nc6 {[%clk 0:00:44.3]} 27... Bd6
{[%clk 0:00:37]} 28. Nxd8 {[%clk 0:00:42.4]} 28... Rxd8 {[%clk 0:00:34.7]} 29.
cxb5 {[%clk 0:00:35.9]} 29... Qxb5 {[%clk 0:00:32.7]} 30. Bf6 {[%clk 0:00:32.3]}
30... Rf8 {[%clk 0:00:22.3]} 31. Qa8+ {[%clk 0:00:32]} 31... Bb8 {[%clk
0:00:18.6]} 32. Rxa6 {[%clk 0:00:28]} 32... Qb7+ {[%clk 0:00:16.2]} 33. Qxb7+
{[%clk 0:00:27.5]} 33... Kxb7 {[%clk 0:00:17.1]} 34. Ra5 {[%clk 0:00:27.1]}
34... Rd8 {[%clk 0:00:15.7]} 35. d4 {[%clk 0:00:26.9]} 35... Rd5 {[%clk
0:00:14.3]} 36. Rxd5 {[%clk 0:00:25.8]} 36... exd5 {[%clk 0:00:15.2]} 37. h5
{[%clk 0:00:26.2]} 37... Kc6 {[%clk 0:00:15.9]} 38. h6 {[%clk 0:00:26.3]} 38...
Kd7 {[%clk 0:00:14.9]} 39. h7 {[%clk 0:00:26.6]} 39... Ke6 {[%clk 0:00:14.6]}
40. h8=Q {[%clk 0:00:26.4]} 1-0

[Event "*** Titled Tuesday Blitz"]
[Site "Chess.com"]
[Date "2021.02.09"]
[Round "4"]
[White "lacafi"]
[Black "jamalm2"]
[Result "1-0"]
[WhiteElo "2215"]
[BlackElo "1927"]
[TimeControl "180+1"]
[EndTime "10:39:35 PST"]
[Termination "lacafi won on time"]

1. d4 {[%clk 0:03:00.9]} 1... d5 {[%clk 0:02:57.8]} 2. Nf3 {[%clk 0:03:01.1]}
2... c6 {[%clk 0:02:56.8]} 3. e3 {[%clk 0:03:00.8]} 3... Nf6 {[%clk 0:02:56.3]}
4. Nbd2 {[%clk 0:03:00.6]} 4... Bf5 {[%clk 0:02:54]} 5. Be2 {[%clk 0:03:00.7]}
5... e6 {[%clk 0:02:53.6]} 6. O-O {[%clk 0:03:00.6]} 6... Bg6 {[%clk 0:02:52.4]}
7. b3 {[%clk 0:03:00.9]} 7... Nbd7 {[%clk 0:02:51.8]} 8. Bb2 {[%clk 0:03:01.4]}
8... Bd6 {[%clk 0:02:51.1]} 9. c4 {[%clk 0:03:02]} 9... O-O {[%clk 0:02:47.2]}
10. a3 {[%clk 0:03:00.8]} 10... b6 {[%clk 0:02:46.5]} 11. b4 {[%clk 0:03:00.3]}
11... Rc8 {[%clk 0:02:45.2]} 12. Qa4 {[%clk 0:02:54.8]} 12... Bb8 {[%clk
0:02:43.6]} 13. Rac1 {[%clk 0:02:46.1]} 13... dxc4 {[%clk 0:02:42.8]} 14. b5
{[%clk 0:02:01.4]} 14... cxb5 {[%clk 0:02:36.9]} 15. Qxb5 {[%clk 0:02:00.5]}
15... Ne4 {[%clk 0:02:17.4]} 16. Nxc4 {[%clk 0:01:52.3]} 16... Ndf6 {[%clk
0:01:50.2]} 17. Nce5 {[%clk 0:01:34.3]} 17... Rxc1 {[%clk 0:01:36.8]} 18. Rxc1
{[%clk 0:01:33.6]} 18... Nd5 {[%clk 0:01:35.8]} 19. Nc6 {[%clk 0:01:17]} 19...
Qd6 {[%clk 0:01:28.6]} 20. Nxb8 {[%clk 0:01:16.1]} 20... Qxb8 {[%clk 0:01:24.7]}
21. Ne5 {[%clk 0:01:14.4]} 21... Qd8 {[%clk 0:01:15.5]} 22. Qc6 {[%clk
0:00:56.8]} 22... Qh4 {[%clk 0:01:12.8]} 23. g3 {[%clk 0:00:51.1]} 23... Qf6
{[%clk 0:01:10.2]} 24. Bf3 {[%clk 0:00:42.6]} 24... Ng5 {[%clk 0:00:51.4]} 25.
Bxd5 {[%clk 0:00:23.4]} 25... Nh3+ {[%clk 0:00:43.8]} 26. Kg2 {[%clk 0:00:23.6]}
26... Qxf2+ {[%clk 0:00:39.4]} 27. Kxh3 {[%clk 0:00:23.8]} 27... exd5 {[%clk
0:00:30.7]} 28. Nxg6 {[%clk 0:00:17.6]} 28... hxg6 {[%clk 0:00:27.4]} 29. Bc3
{[%clk 0:00:12.9]} 29... Qxe3 {[%clk 0:00:14.8]} 30. Re1 {[%clk 0:00:10.6]}
30... Qh6+ {[%clk 0:00:12.3]} 31. Kg2 {[%clk 0:00:09.9]} 31... Qh5 {[%clk
0:00:05.9]} 32. Re5 {[%clk 0:00:07]} 32... Qd1 {[%clk 0:00:02.5]} 33. Bb4 {[%clk
0:00:02.7]} 33... Qd2+ {[%clk 0:00:01.2]} 34. Kh3 {[%clk 0:00:01.9]} 1-0

[Event "*** Titled Tuesday Blitz"]
[Site "Chess.com"]
[Date "2021.02.09"]
[Round "4"]
[White "iwanyu"]
[Black "Aygehovit1992"]
[Result "1-0"]
[WhiteElo "2818"]
[BlackElo "2612"]
[TimeControl "180+1"]
[EndTime "10:39:37 PST"]
[Termination "iwanyu won on time"]

1. d4 {[%clk 0:03:00.9]} 1... Nf6 {[%clk 0:02:59.4]} 2. Nf3 {[%clk 0:03:01.4]}
2... g6 {[%clk 0:02:58.9]} 3. Bf4 {[%clk 0:02:59.8]} 3... Bg7 {[%clk 0:02:59.4]}
4. e3 {[%clk 0:03:00.1]} 4... b6 {[%clk 0:02:58.8]} 5. h3 {[%clk 0:02:59.9]}
5... Bb7 {[%clk 0:02:59.2]} 6. Be2 {[%clk 0:03:00.6]} 6... d6 {[%clk 0:02:57.7]}
7. O-O {[%clk 0:03:00.8]} 7... Nbd7 {[%clk 0:02:58.3]} 8. c3 {[%clk 0:02:59]}
8... O-O {[%clk 0:02:54.1]} 9. a4 {[%clk 0:02:59.2]} 9... a5 {[%clk 0:02:53.9]}
10. Nbd2 {[%clk 0:02:59.3]} 10... e6 {[%clk 0:02:54.2]} 11. Qc2 {[%clk
0:02:57.5]} 11... Qe7 {[%clk 0:02:54.3]} 12. Rfe1 {[%clk 0:02:55.7]} 12... e5
{[%clk 0:02:54.4]} 13. dxe5 {[%clk 0:02:49.6]} 13... dxe5 {[%clk 0:02:55.3]} 14.
Bg3 {[%clk 0:02:50]} 14... e4 {[%clk 0:02:54.6]} 15. Nd4 {[%clk 0:02:48.9]}
15... Nc5 {[%clk 0:02:53.8]} 16. b4 {[%clk 0:02:45.6]} 16... axb4 {[%clk
0:02:53.9]} 17. cxb4 {[%clk 0:02:45.6]} 17... Nd3 {[%clk 0:02:50.7]} 18. Bxd3
{[%clk 0:02:43]} 18... exd3 {[%clk 0:02:51.6]} 19. Qxd3 {[%clk 0:02:40.3]} 19...
c5 {[%clk 0:02:42.5]} 20. bxc5 {[%clk 0:02:38.7]} 20... bxc5 {[%clk 0:02:43.4]}
21. Nb5 {[%clk 0:02:38.7]} 21... Rfd8 {[%clk 0:02:43]} 22. Qe2 {[%clk
0:02:29.4]} 22... Rxd2 {[%clk 0:02:23.3]} 23. Qxd2 {[%clk 0:02:25.6]} 23... Ne4
{[%clk 0:02:23.9]} 24. Qe2 {[%clk 0:01:54.8]} 24... Nxg3 {[%clk 0:02:14.1]} 25.
fxg3 {[%clk 0:01:55.7]} 25... Bxa1 {[%clk 0:02:11.9]} 26. Rxa1 {[%clk
0:01:56.6]} 26... Qe5 {[%clk 0:02:12.1]} 27. Qe1 {[%clk 0:01:52.3]} 27... Qb2
{[%clk 0:01:58.3]} 28. Qf1 {[%clk 0:01:45.4]} 28... Rd8 {[%clk 0:01:15.1]} 29.
Rb1 {[%clk 0:01:40.2]} 29... Qe5 {[%clk 0:00:53.5]} 30. Qf2 {[%clk 0:01:28.6]}
30... Bxg2 {[%clk 0:00:31.1]} 31. Qxg2 {[%clk 0:01:19.1]} 31... Qxe3+ {[%clk
0:00:31.1]} 32. Qf2 {[%clk 0:01:17.4]} 32... Qe6 {[%clk 0:00:24.3]} 33. a5
{[%clk 0:01:12]} 33... Qxh3 {[%clk 0:00:22.9]} 34. Nc3 {[%clk 0:00:53.8]} 34...
Rd3 {[%clk 0:00:19.1]} 35. Ne4 {[%clk 0:00:45.5]} 35... Rd4 {[%clk 0:00:06.8]}
36. Qf6 {[%clk 0:00:24.3]} 36... Qc8 {[%clk 0:00:02]} 37. Ng5 {[%clk 0:00:20.2]}
37... Qe8 {[%clk 0:00:01.9]} 38. Rb8 {[%clk 0:00:13.3]} 38... Qxb8 {[%clk
0:00:01.6]} 39. Qxf7+ {[%clk 0:00:13.4]} 1-0

[Event "*** Titled Tuesday Blitz"]
[Site "Chess.com"]
[Date "2021.02.09"]
[Round "4"]
[White "DanilNajdin"]
[Black "GMJustin"]
[Result "1-0"]
[WhiteElo "2471"]
[BlackElo "2288"]
[TimeControl "180+1"]
[EndTime "10:39:38 PST"]
[Termination "DanilNajdin won on time"]

1. e4 {[%clk 0:03:00.9]} 1... e5 {[%clk 0:02:54.7]} 2. Nf3 {[%clk 0:03:00.7]}
2... Nc6 {[%clk 0:02:52.9]} 3. Nc3 {[%clk 0:02:58.5]} 3... Nf6 {[%clk
0:02:52.2]} 4. Bb5 {[%clk 0:02:58.2]} 4... Bb4 {[%clk 0:02:46.8]} 5. O-O {[%clk
0:02:57.8]} 5... Bxc3 {[%clk 0:02:38.5]} 6. bxc3 {[%clk 0:02:47.2]} 6... O-O
{[%clk 0:02:23.2]} 7. Re1 {[%clk 0:02:47.2]} 7... d6 {[%clk 0:02:17.6]} 8. d4
{[%clk 0:02:38]} 8... Bg4 {[%clk 0:02:15.9]} 9. h3 {[%clk 0:02:33.4]} 9... Bh5
{[%clk 0:01:51.1]} 10. g4 {[%clk 0:02:11.2]} 10... Bg6 {[%clk 0:01:49.8]} 11.
Bg5 {[%clk 0:02:08.6]} 11... h6 {[%clk 0:01:06.8]} 12. Bh4 {[%clk 0:02:02.4]}
12... Qe7 {[%clk 0:01:07]} 13. d5 {[%clk 0:01:39.4]} 13... Nb8 {[%clk
0:00:55.1]} 14. Rb1 {[%clk 0:01:36.4]} 14... a6 {[%clk 0:00:40.2]} 15. Bd3
{[%clk 0:01:35.5]} 15... b6 {[%clk 0:00:35.4]} 16. Qe2 {[%clk 0:01:19.5]} 16...
Nbd7 {[%clk 0:00:27.8]} 17. Nd2 {[%clk 0:01:11.5]} 17... Nc5 {[%clk 0:00:22.3]}
18. f3 {[%clk 0:01:11.1]} 18... Bh7 {[%clk 0:00:21.6]} 19. g5 {[%clk 0:01:08.3]}
19... Nh5 {[%clk 0:00:14.9]} 20. Kh2 {[%clk 0:00:34.1]} 20... hxg5 {[%clk
0:00:13.7]} 21. Bf2 {[%clk 0:00:33.1]} 21... Nf4 {[%clk 0:00:13.9]} 22. Qf1
{[%clk 0:00:33.3]} 22... f6 {[%clk 0:00:11.7]} 23. Bxc5 {[%clk 0:00:33.1]} 23...
bxc5 {[%clk 0:00:09.1]} 24. Bxa6 {[%clk 0:00:33.6]} 24... Bg6 {[%clk 0:00:08.1]}
25. Rb7 {[%clk 0:00:29.5]} 25... Kf7 {[%clk 0:00:05.7]} 26. Reb1 {[%clk
0:00:29.1]} 26... Rh8 {[%clk 0:00:05.2]} 27. Bc4 {[%clk 0:00:17.2]} 27... Rxh3+
{[%clk 0:00:04.7]} 28. Qxh3 {[%clk 0:00:17.7]} 28... Nxh3 {[%clk 0:00:04.3]} 29.
Kxh3 {[%clk 0:00:18.6]} 29... Qd7+ {[%clk 0:00:03.4]} 30. Kg3 {[%clk 0:00:17.9]}
30... Rh8 {[%clk 0:00:03]} 31. Nf1 {[%clk 0:00:15.7]} 31... Qh3+ {[%clk
0:00:01.7]} 32. Kf2 {[%clk 0:00:16.1]} 32... Qh4+ {[%clk 0:00:02]} 33. Ke2
{[%clk 0:00:14.6]} 33... g4 {[%clk 0:00:02.2]} 34. Rxc7+ {[%clk 0:00:14.2]}
34... Kf8 {[%clk 0:00:02.4]} 35. Rb8+ {[%clk 0:00:13.3]} 35... Be8 {[%clk
0:00:02.5]} 36. Bb5 {[%clk 0:00:10]} 36... gxf3+ {[%clk 0:00:02.5]} 37. Kd1
{[%clk 0:00:09.7]} 37... Qh5 {[%clk 0:00:02]} 38. Rxe8+ {[%clk 0:00:07.8]} 38...
Qxe8 {[%clk 0:00:02]} 39. Bxe8 {[%clk 0:00:08.4]} 39... Kxe8 {[%clk 0:00:02.3]}
40. Rc8+ {[%clk 0:00:08.9]} 40... Kf7 {[%clk 0:00:01]} 41. Rxh8 {[%clk
0:00:09.8]} 1-0

[Event "*** Titled Tuesday Blitz"]
[Site "Chess.com"]
[Date "2021.02.09"]
[Round "4"]
[White "Grandmaster1369"]
[Black "Chessbard1972"]
[Result "0-1"]
[WhiteElo "2197"]
[BlackElo "2408"]
[TimeControl "180+1"]
[EndTime "10:39:38 PST"]
[Termination "Chessbard1972 won by checkmate"]

1. e4 {[%clk 0:02:59.3]} 1... c5 {[%clk 0:02:57.8]} 2. Nf3 {[%clk 0:02:57.4]}
2... a6 {[%clk 0:02:57.5]} 3. d4 {[%clk 0:02:56.4]} 3... cxd4 {[%clk 0:02:57.3]}
4. Nxd4 {[%clk 0:02:55.2]} 4... e6 {[%clk 0:02:57.2]} 5. Nc3 {[%clk 0:02:53.6]}
5... Nc6 {[%clk 0:02:51.3]} 6. Be3 {[%clk 0:02:49.1]} 6... Qc7 {[%clk
0:02:50.6]} 7. Be2 {[%clk 0:02:46.5]} 7... Nf6 {[%clk 0:02:49.4]} 8. Qd2 {[%clk
0:02:36.8]} 8... Bb4 {[%clk 0:02:48]} 9. O-O {[%clk 0:02:35.8]} 9... Nxe4 {[%clk
0:02:45.8]} 10. Qd3 {[%clk 0:02:30.2]} 10... Nxc3 {[%clk 0:02:41.2]} 11. bxc3
{[%clk 0:02:31.1]} 11... Be7 {[%clk 0:02:40.5]} 12. f4 {[%clk 0:02:19]} 12... f5
{[%clk 0:02:38.1]} 13. Nxc6 {[%clk 0:02:09.6]} 13... bxc6 {[%clk 0:02:34.7]} 14.
Bd4 {[%clk 0:02:08.4]} 14... O-O {[%clk 0:02:33]} 15. Rad1 {[%clk 0:01:57.4]}
15... c5 {[%clk 0:02:24.9]} 16. Be5 {[%clk 0:01:52.9]} 16... Qa7 {[%clk
0:02:17]} 17. Qg3 {[%clk 0:01:46.7]} 17... g6 {[%clk 0:02:11.6]} 18. Bh5 {[%clk
0:01:41.5]} 18... Kf7 {[%clk 0:01:46.2]} 19. Qh3 {[%clk 0:01:31.6]} 19... Ke8
{[%clk 0:01:35]} 20. Bf3 {[%clk 0:01:25.8]} 20... Bb7 {[%clk 0:01:14.7]} 21.
Qxh7 {[%clk 0:01:22.6]} 21... Bxf3 {[%clk 0:00:57.6]} 22. Qxg6+ {[%clk
0:01:16.3]} 22... Kd8 {[%clk 0:00:50.9]} 23. Rxf3 {[%clk 0:01:15.2]} 23... Kc8
{[%clk 0:00:48.5]} 24. Rfd3 {[%clk 0:01:11.2]} 24... Rd8 {[%clk 0:00:45.2]} 25.
Kh1 {[%clk 0:01:05.5]} 25... Qb7 {[%clk 0:00:43.2]} 26. Qf7 {[%clk 0:00:59.6]}
26... Bh4 {[%clk 0:00:31.7]} 27. Rxd7 {[%clk 0:00:45.3]} 27... Rxd7 {[%clk
0:00:24.2]} 28. Qe8+ {[%clk 0:00:24.8]} 28... Bd8 {[%clk 0:00:23.3]} 29. Qxe6
{[%clk 0:00:24.2]} 29... Ra7 {[%clk 0:00:21.3]} 30. Qxf5 {[%clk 0:00:20.3]}
30... Qc6 {[%clk 0:00:20.4]} 31. Re1 {[%clk 0:00:19.2]} 31... Kb7 {[%clk
0:00:19]} 32. c4 {[%clk 0:00:17.1]} 32... Ka8 {[%clk 0:00:18.7]} 33. Bf6 {[%clk
0:00:17.5]} 33... Bxf6 {[%clk 0:00:17.4]} 34. Re8+ {[%clk 0:00:15.9]} 34... Bd8
{[%clk 0:00:16.5]} 35. h3 {[%clk 0:00:15.6]} 35... Rab7 {[%clk 0:00:16.1]} 36.
Qf8 {[%clk 0:00:14]} 36... Rb8 {[%clk 0:00:15.3]} 37. f5 {[%clk 0:00:12.9]}
37... Rd2 {[%clk 0:00:14.6]} 38. Qg8 {[%clk 0:00:08]} 38... Rd1+ {[%clk
0:00:13.6]} 39. Kh2 {[%clk 0:00:07.4]} 39... Bc7+ {[%clk 0:00:13.4]} 40. g3
{[%clk 0:00:07.4]} 40... Qh1# {[%clk 0:00:12.9]} 0-1

[Event "*** Titled Tuesday Blitz"]
[Site "Chess.com"]
[Date "2021.02.09"]
[Round "4"]
[White "ChessWarrior3"]
[Black "pavlitas17"]
[Result "0-1"]
[WhiteElo "2109"]
[BlackElo "2313"]
[TimeControl "180+1"]
[EndTime "10:39:39 PST"]
[Termination "pavlitas17 won on time"]

1. e4 {[%clk 0:03:00.9]} 1... c5 {[%clk 0:02:59.5]} 2. Nf3 {[%clk 0:02:56.5]}
2... d6 {[%clk 0:02:59.5]} 3. d4 {[%clk 0:02:55.3]} 3... cxd4 {[%clk 0:02:59.8]}
4. Nxd4 {[%clk 0:02:56.2]} 4... Nf6 {[%clk 0:03:00]} 5. Nc3 {[%clk 0:02:55.3]}
5... g6 {[%clk 0:03:00.5]} 6. Be3 {[%clk 0:02:53]} 6... Bg7 {[%clk 0:03:01]} 7.
f3 {[%clk 0:02:52.6]} 7... O-O {[%clk 0:03:01.6]} 8. Qd2 {[%clk 0:02:52.1]} 8...
Nc6 {[%clk 0:03:02.2]} 9. O-O-O {[%clk 0:02:52]} 9... d5 {[%clk 0:03:01.9]} 10.
exd5 {[%clk 0:02:52.9]} 10... Nxd5 {[%clk 0:03:01.9]} 11. Nxc6 {[%clk
0:02:53.6]} 11... bxc6 {[%clk 0:03:02.2]} 12. Bd4 {[%clk 0:02:54.1]} 12... Bxd4
{[%clk 0:03:00]} 13. Qxd4 {[%clk 0:02:53.4]} 13... Qb6 {[%clk 0:02:59.5]} 14.
Nxd5 {[%clk 0:02:47.5]} 14... cxd5 {[%clk 0:02:57.6]} 15. Qxb6 {[%clk
0:02:47.3]} 15... axb6 {[%clk 0:02:57.8]} 16. Kb1 {[%clk 0:02:42.7]} 16... Bb7
{[%clk 0:02:51.5]} 17. Bb5 {[%clk 0:02:14.2]} 17... e5 {[%clk 0:02:50.9]} 18.
Rhe1 {[%clk 0:02:12.3]} 18... e4 {[%clk 0:02:48.9]} 19. fxe4 {[%clk 0:02:06.9]}
19... dxe4 {[%clk 0:02:48.9]} 20. Rd7 {[%clk 0:02:01.9]} 20... Rab8 {[%clk
0:02:40.4]} 21. a4 {[%clk 0:01:55]} 21... Rfd8 {[%clk 0:02:37.5]} 22. Re7 {[%clk
0:01:40.5]} 22... Kf8 {[%clk 0:02:36.6]} 23. Rc7 {[%clk 0:01:39.1]} 23... Rdc8
{[%clk 0:02:36.3]} 24. Rxb7 {[%clk 0:01:36.5]} 24... Rxb7 {[%clk 0:02:35.6]} 25.
Ba6 {[%clk 0:01:36.2]} 25... Rbb8 {[%clk 0:02:30.7]} 26. Bxc8 {[%clk 0:01:36.2]}
26... Rxc8 {[%clk 0:02:31.1]} 27. Rxe4 {[%clk 0:01:36.6]} 27... Rc5 {[%clk
0:02:31.3]} 28. b4 {[%clk 0:01:36.2]} 28... Rg5 {[%clk 0:02:31.2]} 29. g4 {[%clk
0:01:30.6]} 29... h5 {[%clk 0:02:31.2]} 30. h3 {[%clk 0:01:30.1]} 30... hxg4
{[%clk 0:02:30.8]} 31. hxg4 {[%clk 0:01:31]} 31... f5 {[%clk 0:02:30.9]} 32.
gxf5 {[%clk 0:01:27.2]} 32... gxf5 {[%clk 0:02:31.1]} 33. Rf4 {[%clk 0:01:27.3]}
33... Ke7 {[%clk 0:02:30.2]} 34. a5 {[%clk 0:01:26.5]} 34... bxa5 {[%clk
0:02:29.8]} 35. bxa5 {[%clk 0:01:27.4]} 35... Ke6 {[%clk 0:02:30.1]} 36. a6
{[%clk 0:01:25.6]} 36... Rg7 {[%clk 0:02:30.1]} 37. Rh4 {[%clk 0:01:19]} 37...
Ke5 {[%clk 0:02:25.8]} 38. Kc1 {[%clk 0:01:18.5]} 38... f4 {[%clk 0:02:25.3]}
39. Kd2 {[%clk 0:01:18.1]} 39... Ke4 {[%clk 0:02:25.2]} 40. Rh6 {[%clk
0:01:15.3]} 40... Rg2+ {[%clk 0:02:24.2]} 41. Kc3 {[%clk 0:01:14.2]} 41... Rg7
{[%clk 0:02:17.7]} 42. Re6+ {[%clk 0:01:08.3]} 42... Kd5 {[%clk 0:02:17.2]} 43.
Rf6 {[%clk 0:01:05.5]} 43... Ke4 {[%clk 0:02:16.3]} 44. Rf8 {[%clk 0:01:03.1]}
44... f3 {[%clk 0:02:15.3]} 45. Kc4 {[%clk 0:00:55.6]} 45... Ke3 {[%clk
0:02:13.7]} 46. Re8+ {[%clk 0:00:51.3]} 46... Kd2 {[%clk 0:02:13.1]} 47. Rf8
{[%clk 0:00:49.8]} 47... Ke3 {[%clk 0:02:07.1]} 48. Kb5 {[%clk 0:00:49.3]} 48...
f2 {[%clk 0:02:02.9]} 49. c4 {[%clk 0:00:48.7]} 49... Ke2 {[%clk 0:01:42.7]} 50.
c5 {[%clk 0:00:47.7]} 50... Rg3 {[%clk 0:01:32.9]} 51. a7 {[%clk 0:00:32.5]}
51... Rb3+ {[%clk 0:01:32.5]} 52. Kc6 {[%clk 0:00:31.6]} 52... Rf3 {[%clk
0:01:31.6]} 53. Re8+ {[%clk 0:00:18.2]} 53... Kd2 {[%clk 0:01:25.8]} 54. a8=Q
{[%clk 0:00:12.4]} 54... f1=Q {[%clk 0:01:25.5]} 55. Qa2+ {[%clk 0:00:12.3]}
55... Kc3 {[%clk 0:01:20.2]} 56. Qa3+ {[%clk 0:00:12.5]} 56... Kc2 {[%clk
0:01:17.9]} 57. Qa4+ {[%clk 0:00:12.3]} 57... Kc3 {[%clk 0:01:14.5]} 58. Qa5+
{[%clk 0:00:12.2]} 58... Kc2 {[%clk 0:01:13.9]} 59. Qa2+ {[%clk 0:00:07.1]}
59... Kc3 {[%clk 0:01:13]} 60. Qe2 {[%clk 0:00:04.1]} 60... Rf6+ {[%clk
0:01:10.6]} 61. Kb5 {[%clk 0:00:01.2]} 61... Qb1+ {[%clk 0:01:09.7]} 0-1

[Event "*** Titled Tuesday Blitz"]
[Site "Chess.com"]
[Date "2021.02.09"]
[Round "4"]
[White "Volodar_Murzin"]
[Black "Grammnik"]
[Result "1-0"]
[WhiteElo "2611"]
[BlackElo "2411"]
[TimeControl "180+1"]
[EndTime "10:39:40 PST"]
[Termination "Volodar_Murzin won on time"]

1. e4 {[%clk 0:03:00.9]} 1... c6 {[%clk 0:02:59.1]} 2. d4 {[%clk 0:03:00.2]}
2... d5 {[%clk 0:02:58.9]} 3. f3 {[%clk 0:03:00.4]} 3... e6 {[%clk 0:02:54.2]}
4. Nc3 {[%clk 0:02:59.4]} 4... Nf6 {[%clk 0:02:53.6]} 5. Be3 {[%clk 0:02:57]}
5... Bb4 {[%clk 0:02:52.9]} 6. e5 {[%clk 0:02:53.8]} 6... Nfd7 {[%clk
0:02:52.7]} 7. a3 {[%clk 0:02:53.8]} 7... Be7 {[%clk 0:02:47.9]} 8. f4 {[%clk
0:02:52.4]} 8... c5 {[%clk 0:02:45.4]} 9. Nf3 {[%clk 0:02:52.7]} 9... Nc6 {[%clk
0:02:44.2]} 10. Bd3 {[%clk 0:02:45.9]} 10... g6 {[%clk 0:02:39.7]} 11. O-O
{[%clk 0:02:45.4]} 11... O-O {[%clk 0:02:09.3]} 12. Qd2 {[%clk 0:02:27.7]} 12...
a6 {[%clk 0:02:06.6]} 13. Qf2 {[%clk 0:02:25.4]} 13... cxd4 {[%clk 0:02:04.9]}
14. Nxd4 {[%clk 0:02:24.6]} 14... Nxd4 {[%clk 0:02:04.7]} 15. Bxd4 {[%clk
0:02:25.5]} 15... b5 {[%clk 0:02:00.4]} 16. Ne2 {[%clk 0:02:22.4]} 16... Bb7
{[%clk 0:01:59.8]} 17. c3 {[%clk 0:02:16.2]} 17... Qc7 {[%clk 0:01:51.2]} 18. b4
{[%clk 0:02:15.4]} 18... Bc6 {[%clk 0:01:26.1]} 19. Qg3 {[%clk 0:01:47]} 19...
Rfe8 {[%clk 0:00:41.4]} 20. f5 {[%clk 0:01:16.1]} 20... exf5 {[%clk 0:00:37.9]}
21. Bxf5 {[%clk 0:01:14.4]} 21... Bf8 {[%clk 0:00:31.6]} 22. Nf4 {[%clk
0:00:26.6]} 22... Nxe5 {[%clk 0:00:27.3]} 23. Nh5 {[%clk 0:00:25.8]} 23... Bg7
{[%clk 0:00:20]} 24. Rae1 {[%clk 0:00:20.8]} 24... Bh8 {[%clk 0:00:18]} 25. Bc2
{[%clk 0:00:18]} 25... Re6 {[%clk 0:00:12.3]} 26. Re3 {[%clk 0:00:12.7]} 26...
Rae8 {[%clk 0:00:10.5]} 27. Nf4 {[%clk 0:00:13.1]} 27... R6e7 {[%clk 0:00:09.4]}
28. Nd3 {[%clk 0:00:11.5]} 28... Nxd3 {[%clk 0:00:03.8]} 29. Rxe7 {[%clk
0:00:08.8]} 29... Rxe7 {[%clk 0:00:03.5]} 30. Qxd3 {[%clk 0:00:07.1]} 30...
Bxd4+ {[%clk 0:00:02.8]} 31. Qxd4 {[%clk 0:00:06.7]} 31... Qe5 {[%clk
0:00:02.9]} 32. Kf2 {[%clk 0:00:03.3]} 32... Kg7 {[%clk 0:00:02.2]} 33. Re1
{[%clk 0:00:02.2]} 33... Qxd4+ {[%clk 0:00:01.4]} 34. cxd4 {[%clk 0:00:03.1]}
34... Rxe1 {[%clk 0:00:01.2]} 35. Kxe1 {[%clk 0:00:04]} 35... f5 {[%clk
0:00:01.6]} 36. Kd2 {[%clk 0:00:04.4]} 36... Kf6 {[%clk 0:00:01.9]} 37. Ke3
{[%clk 0:00:05]} 37... g5 {[%clk 0:00:02]} 38. g3 {[%clk 0:00:05.6]} 1-0